Cogmind - Beta 16.1 @@@ ROGUE MODE // 2026.02.23 @ 02:17:03 Player: Lyra Result: Self-destructed Performance ------------- Evolutions (1) 500 Regions Visited (2) 400 Robots Destroyed (9) 45 Value Destroyed (260) 260 Prototype IDs (1) 20 Alien Tech Used (0) 0 Bonus (0) 0 TOTAL SCORE: 1225 Bonus ------- None Cogmind --------- Core Integrity 124/400 Matter 300/300 Energy 100/100 System Corruption 0% Temperature Cool (0) Movement Core (700) Ox13 Location -9/Materials Parts ------- > --- POWER (2) -------- (None) > --- PROPULSION (2) --- (None) > --- UTILITY (2) ------ High-capacity Storage Unit Targeting Computer > --- WEAPON (3) ------- (None) > --- INVENTORY (20) --- Light Treads Sensor Array Terrain Scan Processor Tractor Beam Peak State ------------ > --- POWER ------------ Light Ion Engine > --- PROPULSION ------- Compact Wheel Compact Wheel > --- UTILITY ---------- High-capacity Storage Unit Targeting Computer > --- WEAPON ----------- EM Pulse Gun Improved EM Shotgun Medium Laser > --- INVENTORY -------- Light Ion Engine Light Treads Hover Unit Sensor Array Tractor Beam EM Pulse Gun Welding Torch [Rating: 10] Favorites ----------- Power Light Ion Engine Engine Light Ion Engine Propulsion Compact Wheel Wheel Compact Wheel Hover Unit Hover Unit Utility High-capacity Storage Unit Storage High-capacity Storage Unit Processor Targeting Computer Weapon Medium Laser Energy Gun Medium Laser Special Weapon Welding Torch Build | -11 -10 -9 ------- Run | Yrd Mat Mat Slots Evolved 2 | . . 2 Power 1 | . . 1 Propulsion . | . . . Utility . | . . . Weapon 1 | . . 1 Parts Attached 13 | 6 1 6 Power 2 | 1 . 1 Engine 2 | 1 . 1 Core . | . . . Reactor . | . . . Propulsion 3 | 2 . 1 Treads . | . . . Leg . | . . . Wheel 2 | 2 . . Hover 1 | . . 1 Flight . | . . . Utility 3 | 1 1 1 Device . | . . . Storage 2 | 1 1 . Processor 1 | . . 1 Hackware . | . . . Protection . | . . . Artifact . | . . . Weapon 5 | 2 . 3 Energy Gun 4 | 2 . 2 Energy Cannon . | . . . Ballistic Gun . | . . . Ballistic Cannon . | . . . Launcher . | . . . Special Weapon 1 | . . 1 Impact Weapon . | . . . Slashing Weapon . | . . . Piercing Weapon . | . . . Special Melee Weapon . | . . . Unidentified Prototypes 1 | . . 1 Parts Lost 10 | . . 10 Power 2 | . . 2 Propulsion 3 | . . 3 Utility . | . . . Weapon 5 | . . 5 Highest Loss Streak 7 | . . 7 To Critical Strikes . | . . . Average Backups 5 | 2 3 6 Power . | . 1 . Propulsion 1 | . 1 1 Utility 1 | . . 2 Weapon . | . 1 . Tool/Special . | . . . Unused Backups 4 | . . 4 Power . | . . . Propulsion 1 | . . 1 Utility 3 | . . 3 Weapon . | . . . Tool/Special . | . . . Average Slot Usage (%) 74 | . 85 70 Engine 10 | . 14 8 Wheel 18 | . 28 14 Hover 1 | . . 2 Storage 11 | . 14 11 Processor 7 | . . 10 Energy Gun 22 | . 28 20 Special Weapon 1 | . . 2 Peak Build Rating 10 | 6 7 10 Average Rating 6 | 4 6 7 On Entrance 4 | . 6 6 Avg Prop Armor Cover (%) . | . . . Naked Turns . | . . . Heaviest Build 50 | 12 47 50 Greatest Support 32 | 32 32 32 Greatest Overweight (x) 13 | . 1 13 Average Overweight (x) 1 | . . 1 Largest Inventory Capacity 20 | 8 20 20 Average Capacity 17 | 6 16 20 Most Carried 8 | 5 5 8 Average Carried 5 | 2 3 6 Final Capacity 20 | 8 20 20 Final Carried 4 | 3 4 4 Class Distribution -------------------- 74% | Mutant 25% | Gunner Dominant Class ---------------- Mutant | -10/Materials Mutant | -9/Materials Resources | -11 -10 -9 ----------- Run | Yrd Mat Mat Matter Collected 305 | 179 67 59 Remotely . | . . . Salvage Created 368 | . 178 190 Parts 28 | . 14 14 Haulers Intercepted . | . . . Recyclers Shooed . | . . . Parts Field Recycled . | . . . Retrieved Matter . | . . . Parts Self-Destructed . | . . . Prevented . | . . . Parts Restored . | . . . Kills | -11 -10 -9 ------- Run | Yrd Mat Mat Combat Hostiles Destroyed 9 | . 5 4 Guns 9 | . 5 4 Classes Destroyed 4 | . 2 2 Swarmer 3 | . 2 1 Grunt 4 | . 3 1 Brawler 1 | . . 1 Sentry 1 | . . 1 Best Kill Streak 4 | . 4 3 Combat Bots Only 4 | . 4 3 Max Kills in Single Turn 1 | . 1 1 Gunslinging . | . . . Exploded . | . . . Melee . | . . . Uniques/NPCs Destroyed . | . . . Combat | -11 -10 -9 -------- Run | Yrd Mat Mat Hostile Shots Fired 125 | . 36 89 Missed 41 | . 12 29 Hits 84 | . 24 60 Melee 1 | . . 1 Projectile 83 | . 24 59 Critical Strikes 1 | . . 1 Damage Taken 947 | . 209 738 Core 330 | . 54 276 Absorbed by Shields . | . . . Core Remaining (%) 89 | 100 78 . Volleys Fired 28 | . 10 18 Largest 2 | . 2 2 Hottest 95 | . 90 95 Shots Fired 46 | . 19 27 Gun 45 | . 19 26 Cannon . | . . . Launcher . | . . . Special 1 | . . 1 Kinetic . | . . . Thermal 22 | . 9 13 Explosive . | . . . Electromagnetic 24 | . 10 14 Robot Hit Streak 6 | . 6 5 Robot Miss Streak 5 | . 2 5 Penetration Max . | . . . Secondary Targets 3 | . 2 1 Max Gunslinging Chain 1 | . 1 1 Shots Hit Robots 29 | . 13 16 Core Hits 15 | . 8 7 Critical Kills . | . . . Critical Parts Destroyed . | . . . Critical Strikes 1 | . . 1 Burn 1 | . . 1 Melee Attacks . | . . . Impact . | . . . Slashing . | . . . Piercing . | . . . Sneak Attacks . | . . . Combat Hostiles . | . . . Follow-up Attacks . | . . . Damage Inflicted 379 | . 183 196 Guns 379 | . 183 196 Cannons . | . . . Explosions . | . . . Melee . | . . . Ramming . | . . . Kinetic . | . . . Thermal 161 | . 88 73 Explosive . | . . . Electromagnetic 218 | . 95 123 Impact . | . . . Slashing . | . . . Piercing . | . . . Highest Corruption . | . . . Average Corruption . | . . . Corruption Purged . | . . . Corruption Blocked . | . . . Overload Shots . | . . . Overflow Damage . | . . . Projectiles . | . . . Explosions . | . . . Melee . | . . . Knockbacks . | . . . Impact . | . . . Kinetic . | . . . Secondary . | . . . Self-Inflicted Damage . | . . . Shots . | . . . Rammed . | . . . Targets Rammed . | . . . Kicked . | . . . Crushed . | . . . Highest Temperature 247 | . 247 72 Average Temperature 65 | . 120 17 Received Heat Transfer 330 | . 27 303 Siege Activations . | . . . Martial Activations . | . . . Shielding Activations . | . . . Robots Disrupted . | . . . Combat Hostiles . | . . . Robots Corrupted . | . . . Combat Hostiles . | . . . Parts Fried . | . . . Impact Corruptions . | . . . Robots Melted . | . . . Combat Hostiles . | . . . Parts Melted . | . . . Heat Transferred 555 | . 259 296 Parts Sabotaged . | . . . Parts Stolen . | . . . Parts Stripped . | . . . Power Chain Reactions . | . . . Alert | -11 -10 -9 ------- Run | Yrd Mat Mat Maximum Alert Level . | . . . Low Security (%) 100 | 100 100 100 Level 1 . | . . . Level 2 . | . . . Level 3 . | . . . Level 4 . | . . . Level 5 . | . . . High Security . | . . . Max Security . | . . . Peak Influence 80 | . 80 70 Initial 20 | . . 20 Average 15 | . 28 12 Influence Increases 270 | . 110 160 Destroy 0b10 Robot/C 180 | . 100 80 Destroy Leader 30 | . 10 20 Lose Combat Pursuer 60 | . . 60 Influence Decreases 270 | . 60 210 Entered New Map 30 | . . 30 Time Decay 158 | . 60 98 Lost Part 82 | . . 82 Squads Dispatched . | . . . Investigation . | . . . Extermination . | . . . Reinforcement . | . . . Assault . | . . . Garrison . | . . . Intercept . | . . . Searches Triggered . | . . . Construction Impeded . | . . . Haulers Reinforced . | . . . Active Scanning Responses . | . . . Cargo Convoy Interrupts . | . . . Stealth | -11 -10 -9 --------- Run | Yrd Mat Mat Distress Signals . | . . . Communications Jammed . | . . . Distress Signals . | . . . Times Spotted 22 | . 8 14 Peak Tracking Total 7 | . 5 7 Tactical Retreats 3 | . . 3 Traps | -11 -10 -9 ------- Run | Yrd Mat Mat Traps Triggered . | . . . Indirectly . | . . . Trap Hack Attempts . | . . . Triggered . | . . . Disarmed . | . . . Reprogrammed . | . . . Reused . | . . . Traps Extracted . | . . . Installed . | . . . Triggered . | . . . Machines | -11 -10 -9 ---------- Run | Yrd Mat Mat Machines Disabled . | . . . Max in Single Turn . | . . . Machines Repaired . | . . . Machines Dismantled . | . . . Machines Sabotaged . | . . . Overloaded Fab Kills . | . . . Hacking | -11 -10 -9 --------- Run | Yrd Mat Mat Machines Accessed 1 | . . 1 Terminals 1 | . . 1 Fabricators . | . . . Repair Stations . | . . . Recycling Units . | . . . Scanalyzers . | . . . Garrison Access . | . . . Total Hacks 2 | . . 2 Successful 2 | . . 2 Failed . | . . . Catastrophic . | . . . Database Lockouts . | . . . Manual . | . . . Terminals 2 | . . 2 Fabricators . | . . . Repair Stations . | . . . Recycling Units . | . . . Scanalyzers . | . . . Garrison Access . | . . . Terminal Hacks 2 | . . 2 Record 2 | . . 2 Fabricator Hacks . | . . . Repair Station Hacks . | . . . Recycling Unit Hacks . | . . . Scanalyzer . | . . . Garrison Access Hacks . | . . . Unauthorized Hacks . | . . . Terminals . | . . . Fabricators . | . . . Repair Stations . | . . . Recycling Units . | . . . Scanalyzers . | . . . Garrison Access . | . . . Data Cores Recovered . | . . . Used . | . . . Hacking Detections 1 | . . 1 Full Trace Events . | . . . Feedback Events . | . . . Feedback Blocked . | . . . Robot Schematics Acquired . | . . . Robots Built . | . . . Authchips . | . . . Time . | . . . Total Robot Build Rating . | . . . Part Schematics Acquired . | . . . Parts Built . | . . . Authchips . | . . . Time . | . . . Total Part Build Rating . | . . . Part Studies Acquired . | . . . Parts Repaired . | . . . Time . | . . . Parts Recycled . | . . . Recycled Matter . | . . . Retrieved Matter . | . . . Retrieved Components . | . . . Parts Scanalyzed . | . . . Part Schematics Acquired . | . . . Parts Damaged . | . . . Bothacking | -11 -10 -9 ------------ Run | Yrd Mat Mat Used RIF Installer . | . . . Robots Hacked . | . . . Non-combat . | . . . Combat . | . . . Robot Hacks Applied . | . . . Relay Couplers Released . | . . . Fabnet Peak Effective % . | . . . Robots Rewired . | . . . Allies Hacked . | . . . Hacks Repelled . | . . . Allies | -11 -10 -9 -------- Run | Yrd Mat Mat Total Allies . | . . . Largest Group . | . . . Highest-Rated Group . | . . . Highest-Rated Ally . | . . . Total Orders . | . . . Ally Attacks . | . . . Total Damage . | . . . Kills . | . . . Allies Corrupted . | . . . Allies Melted . | . . . Intel | -11 -10 -9 ------- Run | Yrd Mat Mat Active Infowar (turns) . | . . . Robot Analysis Total . | . . . Derelict Logs Recovered . | . . . Drone Launches . | . . . Drone Recoveries . | . . . Exploration | -11 -10 -9 ------------- Run | Yrd Mat Mat Turns Passed 648 | 71 167 410 Spaces Moved 433 | 71 122 240 Core 30 | 29 . 1 Treads . | . . . Legs . | . . . Wheels 389 | 42 122 225 Hover 14 | . . 14 Flight . | . . . Fastest Speed 50 | 50 100 115 Average Speed 122 | 79 110 140 Slowest Speed 700 | 100 115 700 Overloaded Moves . | . . . Propulsion Burnouts . | . . . Robots Hopped . | . . . Potential Cave-ins . | . . . Cave-ins Triggered . | . . . Exploration Rate (%) 19 | 4 26 27 Regions Visited 2 Branch Regions . Pre-discovered Areas . | . . . Known Exits Taken . | . . . Unknown Exits Taken 2 | 1 1 . Scrap Searched . | . . . Spaces Dug . | . . . Terrain Destroyed . | . . . Melee . | . . . Projectile . | . . . AOE . | . . . Terrain Rammed . | . . . Walls Destroyed . | . . . Machines Disabled . | . . . Actions | -11 -10 -9 --------- Run | Yrd Mat Mat Total 505 | 85 136 284 Wait 14 | . 1 13 Move 431 | 70 121 240 Hop . | . . . Pick Up 17 | 9 2 6 Fast Attach . | . . . Attach 13 | 6 1 6 Detach . | . . . Swap 1 | . . 1 Drop 1 | . 1 . Fire 28 | . 10 18 Melee . | . . . Ram . | . . . Kick . | . . . Crush . | . . . Escape Stasis . | . . . Rewire . | . . . Trap . | . . . Miscellaneous . | . . . Route ------- -11/Scrapyard -10/Materials -9/Materials History --------- Turn | Location | Event 6 | -11/Scrapyard | Discovered new exit (range 14) 72 | -11/Scrapyard | Entered Materials 221 | -10/Materials | Discovered new exit (range 16) 239 | -10/Materials | Entered another Materials area 239 | -9/Materials | Evolved 2 slots: Power x1, Weapon x1 626 | -9/Materials | Core integrity fell below 50% 649 | -9/Materials | Self-destructed Last Messages --------------- Switching to secondary target: Y-45 Defender. K-01 Serf collects debris. Imp. EM Shotgun destroyed. Med. Laser destroyed. Welding Torch destroyed. K-01 Serf collects debris. Y-45 Defender destroyed. Acquired 59 matter. K-01 Serf collects debris. R-06 Scavenger collects Corrupted Lgt. Treads. K-01 Serf collects debris. R-06 Scavenger collects Corrupted Hammer. R-06 Scavenger collects Corrupted Rnf. Ion Engine. K-01 Serf collects debris. R-06 Scavenger collects Corrupted Imp. Ion Engine. EM Pulse Gun destroyed. Lgt. Ion Engine destroyed. Hover Unit destroyed. Map ----- +----------------------------------------------------+ | | | | | | | | | | | ?????????????????????????????????????????????????? | | ?????????????????????????????????????????????????? | | ?????????????????????????????????????????????????? | | ?????????????????????????????????????????????????? | | ?????????????????????????????????????????????????? | | ?????????????????????????????????????????????????? | | ?????????????????????????????????????????????????? | | ?????????????????????????????????????????????????? | | ?????????????????????????????????????????????????? | | ?????????????????????????????????????????????????? | | ?????????????????????????????????????????????????? | | ??????????????????????#######????????????????????? | | ??????????????????????# !! ???????????????????? | | ??????????????????????# !! """ #?????????????????? | | ???????????????????#### ! """ #?????????????????? | | ???????????????????? # """ #????????????????## | | ???????????????????? + #????????????##### | | ???????????? ????? #g """ #???########## # | | ??????????? ?????# # """ #???# # # | | ??????????? ?????# # """ #???# """ # # | | ???????????" ! ?????# # @ #???# """ # # | | ???????????" #????# ####g#####???# """ # # | | ?????????""" !# # ### #??????#!! + + | | ??????# "" # / +??????#!! # # | | ?? ???# """ #= # ### #??????# # # | | ?? ?# "" #????# #?## ##??????# # # | | ??? # "" #????#%#??# #???????# "T" # # | | ????? + " ######/#### #???????########## # | | ??????# #] % ## #????????????????# ## | | ??????# # *=! ## #????????????????# #? | | ??????# # ! ## #????????????????# #? | | ??????# #% ## #????????????????# #? | | ??????# "T" +%! ## #????????????????# #? | | ??????# """ #[ ## #????????????????# #? | | ??????# ### ## ## #????????????????# #? | | ??????# ????# ## ## ################## #? | | ????????????# ## ## #? | | ??????????###/############ ######## #? | | ??????????# """" ###### # # #? | | ??????????# ""S"" + + # #? | | ??????????# "" "" ######+##### ##### # #? | | ??????????# #??# ## #???# + #? | | ??????????+ ! #??# ## #???# # #? | | ??????????# [ #??# """## #???# # #? | | ??????????# #??# """## #???######## ## | +----------------------------------------------------+ Best States ------------- Heat Dissipation 28 Energy Generation 10 Energy Capacity 125 Matter Stores 300 Matter Capacity 300 Sight Range 16 Terrain Scan Density 10 Evasion (%) 50 Targeting Accuracy 5 Item Schematics ----------------- None Robot Schematics ------------------ None Fabricated ------------ Nothing Repaired ---------- Nothing Studied --------- None Alien Tech Used ----------------- None Achievements -------------- None Challenges ------------ None Game ------ Seed HugeHypercooledForcewell Manual? 0 Play Time 00:07:47 Cumulative 2.5 hours Start 2026.02.23 @ 02:09:21 End 2026.02.23 @ 02:17:03 Sessions 1 Manual Loads 0 Difficulty Rogue Special Mode None Game No. 10 Rogue 10 Adventurer 0 Explorer 0 Win Type - Total 0 Types 0/0/0/0/0/0/0/0/0/0 Lore% 1 Gallery% 5 Achievement% 3 Wizard Run 0 Options --------- Layout 1 ASCII 0 Keyboard 0 Movement Numpad Keybinds 0 Fullscreen 2 Font 48/Terminus Map View 50x35 Zoom Use 0% Tactical HUD 0 Map Filters NONE Filters NONE Steam 1 RUN: 7a605b65-738d-4c94-9418-27e7910e9cc4